bitfinex-derivatives/quotes_ETHF0:USTF0_20260201
["timestamp","ask_amount","ask_price","bid_price","bid_amount"]
[1769988309478,4.012,2249.1,2247.0,2.40665769]
[1769988309677,0.22248,2249.3,2247.2,2.40299231]
[1769988309883,0.2225,2249.1,2247.2,2.40299231]
[1769988310381,0.22235,2250.6,2248.2,2.40299231]
[1769988310583,2.49692506,2250.6,2248.6,2.40299231]
[1769988310781,0.22239,2250.2,2248.6,2.40299231]
[1769988310982,2.49792002,2250.6,2248.6,2.4070196]
[1769988311177,0.22241,2250.0,2248.6,2.4070196]
[1769988311382,2.49692506,2250.1,2248.6,2.4070196]
[1769988311688,0.00099496,2250.6,2248.6,2.4070196]
[1769988311978,0.44424456,2251.3,2249.5,2.40299231]
[1769988312186,0.22196456,2251.3,2249.7,2.40299231]
[1769988312679,2.49692506,2253.0,2250.5,2.40299231]
[1769988312881,2.49692506,2253.5,2250.8,2.62531231]
[1769988313080,4.009,2253.8,2250.8,2.62531231]
[1769988313081,2.49692506,2253.4,2251.0,2.40299231]
[1769988313275,2.71902506,2253.1,2251.0,2.40299231]
[1769988313476,2.49692506,2253.1,2251.0,2.40299231]
[1769988313679,2.49692506,2253.6,2251.3,2.62526231]
[1769988313984,2.49692506,2253.5,2251.3,2.40299231]
[1769988314187,2.49692506,2253.5,2251.7,2.40299231]
[1769988314685,2.49692506,2254.6,2251.7,2.40299231]
[1769988314888,2.71890506,2254.4,2251.7,2.40299231]
[1769988315183,2.49692506,2255.3,2251.8,2.40299231]
[1769988315481,2.49692506,2255.3,2251.7,12.269]
[1769988315482,2.49692506,2253.4,2251.7,2.40299231]
[1769988315682,0.22213,2252.8,2251.7,2.40299231]
[1769988315886,0.22205,2253.6,2251.7,2.40299231]
[1769988316089,4.03337679,2253.4,2251.7,2.40299231]
[1769988316383,2.49692506,2254.5,2251.7,2.40299231]
[1769988316578,0.22192,2255.0,2252.5,2.40299231]
[1769988316579,2.49692506,2255.0,2252.5,2.40299231]
[1769988316784,2.49692506,2255.7,2252.8,2.62512231]
[1769988316985,0.22193,2254.9,2252.8,2.40299231]
[1769988317287,0.222,2254.2,2252.8,2.40299231]
[1769988317483,4.03337679,2254.3,2252.8,2.40299231]
[1769988317787,0.22191,2255.1,2252.8,2.40299231]
[1769988317989,0.22181,2256.0,2253.3,2.40299231]
[1769988318283,0.22186,2255.5,2253.5,2.40299231]
[1769988318480,2.49692506,2256.2,2253.5,2.40299231]
[1769988318787,2.71880506,2255.3,2253.5,2.40299231]
[1769988318987,2.49692506,2255.2,2252.7,2.40299231]
[1769988319188,2.49692506,2254.6,2252.7,2.40299231]
[1769988319484,0.2221,2253.2,2252.5,0.00383181]
[1769988319687,2.49692506,2253.4,2251.7,2.40299231]
[1769988319879,2.49692506,2253.0,2251.3,2.40299231]
[1769988320085,0.2222,2252.1,2251.3,43.20299231]
[1769988320388,2.838,2254.0,2251.3,43.20299231]
[1769988320389,0.22203,2253.9,2251.4,14.63699231]
[1769988320588,2.50009711,2253.9,2251.8,2.40299231]
[1769988320784,2.50009711,2253.9,2252.0,2.40299231]
[1769988320985,0.00317205,2253.9,2252.0,2.40299231]
[1769988321182,0.22205,2253.7,2252.0,2.40299231]
[1769988321584,2.50009711,2253.9,2252.0,2.40299231]
[1769988321783,0.22215,2252.6,2252.0,2.40299231]
[1769988322083,0.22217,2252.4,2251.4,2.40674197]
[1769988322289,0.22209,2253.3,2251.4,2.40674197]
[1769988322485,0.22214,2252.8,2251.4,2.40674197]
[1769988322682,0.22217,2252.5,2251.4,2.40674197]
[1769988322883,4.03337679,2253.2,2251.4,2.40674197]
[1769988323084,0.22216,2252.5,2251.4,2.40674197]
[1769988323489,2.49692506,2252.9,2251.4,0.00374966]
[1769988323490,4.03337679,2252.0,2251.4,0.00374966]
[1769988323789,2.49692506,2253.5,2251.3,2.40299231]
[1769988323985,0.22215,2252.7,2251.5,2.40299231]
[1769988324191,0.22211,2253.1,2251.5,2.40299231]
[1769988324388,0.22205,2253.6,2251.5,2.40299231]
[1769988324587,0.00490351,2253.6,2252.1,2.40299231]
[1769988324785,2.49692506,2255.1,2252.7,2.62512231]
[1769988324993,4.0,2255.8,2252.7,2.40299231]
[1769988324994,2.49692506,2254.7,2252.7,2.40299231]
[1769988325293,0.22205,2253.6,2252.7,2.40299231]
[1769988325489,0.22199,2254.3,2252.7,2.40299231]
[1769988325685,0.00267796,2254.3,2252.7,2.40299231]
[1769988325990,0.22202,2253.9,2252.7,2.40299231]
[1769988326190,0.22205,2253.6,2252.7,2.40299231]
[1769988326392,0.00267796,2254.3,2252.7,2.40299231]
[1769988326793,0.22193,2254.9,2252.7,2.40299231]
[1769988326996,0.22193,2254.9,2252.9,2.40299231]
[1769988327190,2.49692506,2256.4,2253.9,2.62501231]
[1769988327494,0.44392912,2256.3,2254.4,2.40299231]
[1769988327790,2.49692506,2256.8,2255.1,2.40299231]
[1769988327989,3.999,2258.0,2255.1,2.40299231]
[1769988327990,0.22181,2256.1,2255.1,2.40299231]
[1769988328187,2.49692506,2256.2,2254.6,2.40299231]
[1769988328391,0.22188,2255.4,2254.6,2.40299231]
[1769988328593,0.2218,2256.2,2254.6,2.40299231]
[1769988328787,0.22185,2255.7,2254.6,2.40299231]
[1769988329096,0.2219,2255.1,2254.5,3.999]
[1769988329296,0.2219,2255.1,2254.4,0.00335926]
[1769988329593,2.49692506,2255.4,2253.5,2.40299231]
[1769988329788,0.22198,2254.4,2253.5,2.40299231]
[1769988329985,2.49692506,2255.2,2253.5,2.40299231]
[1769988330186,2.49692506,2255.2,2253.3,3.998]
[1769988330390,0.22194,2254.7,2253.0,2.40299231]
[1769988330596,0.22195,2254.6,2253.2,2.40299231]
[1769988330894,0.22195,2254.6,2253.1,3.998]
[1769988330895,2.71873506,2256.1,2253.5,2.40299231]
[1769988331189,0.2218,2256.2,2254.3,2.40299231]
[1769988331391,2.49692506,2256.6,2254.5,2.40299231]
[1769988331594,11.81266884,2257.6,2255.2,2.40299231]
[1769988331889,2.49692506,2258.1,2255.7,2.40299231]
[1769988332095,0.22168,2257.4,2255.7,2.40299231]
[1769988332294,2.49692506,2257.7,2255.8,2.40299231]
[1769988332599,0.22164,2257.8,2256.3,2.40299231]
[1769988332792,0.2217,2257.2,2255.8,2.40299231]
[1769988333096,0.22176,2256.6,2255.3,2.40299231]
[1769988333294,0.22178,2256.4,2255.3,2.40299231]
[1769988333794,0.22182,2256.0,2255.3,2.40299231]
[1769988333986,4.03337679,2255.9,2255.2,0.00550361]
[1769988334189,0.22183,2255.9,2255.2,0.00550361]
[1769988334392,2.49692506,2256.3,2254.8,2.40299231]
[1769988334592,0.22179,2256.3,2254.8,2.40299231]
[1769988334788,6.49292506,2256.8,2254.8,2.40299231]
[1769988334789,2.49692506,2256.8,2254.8,2.40299231]
[1769988334996,4.03337679,2256.4,2254.8,2.40299231]
[1769988335195,0.22181,2256.1,2254.8,2.40299231]
[1769988335493,0.00550361,2256.1,2254.8,2.40671145]
[1769988336288,2.49692506,2256.9,2255.0,2.40299231]
[1769988336492,0.2217,2257.2,2255.0,2.40299231]
[1769988336694,0.22171,2257.1,2255.0,2.40299231]
[1769988336995,0.22176,2256.6,2255.0,2.40299231]
[1769988337694,2.41778092,2258.1,2255.5,2.4070234]
[1769988337894,0.22162,2258.0,2255.7,2.4070234]
[1769988338198,0.22162,2258.0,2256.0,2.6288334]
[1769988338392,0.22163,2257.9,2256.0,2.4070234]
[1769988338694,0.22159,2258.3,2257.0,2.4070234]
[1769988338892,0.22164,2257.8,2257.0,0.00408365]
[1769988339097,2.41778092,2258.8,2257.0,2.41110705]
[1769988339297,0.22163,2257.9,2257.0,2.41110705]
[1769988339493,0.22156,2258.6,2257.0,2.41110705]
[1769988339693,0.22143,2260.0,2257.0,10.42208365]
[1769988339893,0.22145,2259.8,2258.1,2.4070234]
[1769988340094,0.22146,2259.7,2258.3,2.4070234]
[1769988340398,0.22138,2260.4,2258.6,2.4070234]
[1769988340595,0.22147,2259.6,2258.6,2.41092496]
[1769988340790,0.22151,2259.2,2258.6,0.00390156]
[1769988340995,2.41778092,2259.7,2258.2,3.993]
[1769988341302,2.41778092,2261.0,2258.3,2.4070234]
[1769988341503,2.41778092,2261.0,2258.8,2.4070234]
[1769988341698,2.41778092,2260.8,2258.9,40.8]
[1769988341892,0.22142,2260.0,2259.0,2.4070234]
[1769988342097,0.22135,2260.8,2259.0,2.41045836]
[1769988342298,0.22196456,2261.3,2259.2,2.4070234]
[1769988342594,2.63974548,2261.3,2259.4,2.4070234]
[1769988342801,0.22131,2261.2,2259.6,2.4070234]
[1769988342994,0.22196456,2261.3,2259.6,2.4070234]
[1769988343199,0.22133,2261.0,2259.6,2.4070234]
[1769988343499,4.03337679,2261.0,2259.6,2.4070234]
[1769988343695,0.22135,2260.8,2259.6,2.4070234]
[1769988343897,4.03337679,2260.7,2259.6,2.4070234]
[1769988344098,4.03337679,2260.3,2259.5,3.991]
[1769988344398,0.22196456,2261.3,2259.6,2.4070234]
[1769988344905,2.41778092,2261.2,2259.6,2.4070234]
[1769988345100,0.22145,2259.8,2259.0,0.00343496]
[1769988345292,0.22147,2259.6,2259.0,0.00343496]
[1769988345493,2.41778092,2260.5,2259.0,2.41045836]
[1769988345700,4.03337679,2260.4,2259.0,2.41045836]
[1769988345894,0.44326456,2261.3,2259.0,2.41045836]
[1769988346193,0.22196456,2261.3,2259.7,2.47588552]
[1769988346392,0.22196456,2261.3,2259.0,0.00343496]
[1769988346393,0.22196456,2261.3,2260.1,2.47588552]
[1769988346803,4.25472679,2260.7,2259.8,6.46488552]
[1769988347095,0.22136,2260.7,2259.9,2.47588552]
[1769988347296,2.73098159,2261.3,2259.4,2.47588552]
[1769988347502,0.22196456,2261.3,2259.4,2.47588552]
[1769988347700,0.22133,2261.0,2259.4,2.47588552]
[1769988347896,0.22196456,2261.3,2259.6,2.47588552]
[1769988348508,0.22136,2260.7,2259.6,2.47588552]
[1769988348702,0.22137,2260.6,2259.6,2.47588552]
[1769988348905,4.03337679,2260.6,2259.6,2.47588552]
[1769988349102,2.50901703,2260.9,2259.1,2.47588552]
[1769988349303,0.22141,2260.2,2259.2,40.8]
[1769988349506,0.22143,2260.0,2259.1,2.47588552]
[1769988350001,4.03337679,2259.7,2259.1,2.47588552]
[1769988350401,2.50901703,2261.0,2259.1,2.47588552]
[1769988350598,2.97823548,2260.7,2259.1,2.47588552]
[1769988350802,0.22144,2259.8,2259.0,0.00343496]
[1769988351003,0.22138,2260.4,2259.0,2.47932048]
[1769988351402,2.50901703,2261.2,2259.2,2.47588552]
[1769988351602,0.22135,2260.8,2259.2,2.47588552]
[1769988351807,2.50901703,2261.2,2259.2,2.47588552]
[1769988352007,0.22138,2260.5,2259.2,2.47588552]
[1769988352410,2.50901703,2260.8,2259.1,40.8]
[1769988352709,0.22141,2260.1,2259.1,40.8]
[1769988352906,2.50901703,2260.8,2259.2,2.47588552]
[1769988353202,2.50901703,2260.9,2259.2,2.47588552]
[1769988353403,0.46921845,2260.6,2259.2,2.47588552]
[1769988353603,0.22141,2260.1,2259.1,40.8]
[1769988353803,0.22142,2260.0,2259.1,40.8]
[1769988354008,0.22145,2259.8,2259.0,0.00343496]
[1769988354209,2.73039703,2260.5,2259.0,2.47932048]
[1769988354408,0.69061845,2260.3,2259.1,43.27588552]
[1769988354611,0.2214,2260.3,2259.2,2.47588552]
[1769988354908,0.22196456,2261.3,2259.5,2.47588552]
[1769988355104,0.22132,2261.1,2259.7,2.47588552]
[1769988355303,0.22196456,2261.3,2259.7,2.69732552]
[1769988355508,0.22196456,2261.3,2259.7,2.47588552]
[1769988355712,0.22132,2261.1,2259.7,2.47588552]
[1769988355905,2.50901703,2261.2,2259.4,2.47588552]
[1769988356102,0.22133,2261.0,2259.4,2.47588552]
[1769988356808,0.22132,2261.1,2259.6,2.47588552]
[1769988357005,0.22134,2260.8,2259.6,2.47588552]
[1769988357411,0.22196456,2261.3,2259.6,2.47588552]
[1769988357710,2.50901703,2263.0,2260.8,2.47588552]
[1769988357908,0.22121,2262.2,2260.8,2.47946475]
[1769988358109,2.73022703,2262.2,2260.8,2.47946475]
[1769988358317,0.46921845,2261.9,2260.8,2.47946475]
[1769988358504,2.50901703,2262.2,2260.8,2.47946475]
[1769988358705,0.46921845,2261.6,2260.8,2.47946475]
[1769988358905,0.22129,2261.4,2260.8,0.00357923]
[1769988359110,2.50901703,2262.2,2260.8,0.00357923]
[1769988359307,0.22127,2261.7,2260.8,0.00357923]
[1769988359510,0.46921845,2261.6,2260.8,0.00357923]
[1769988359706,0.46921845,2261.4,2260.8,0.00357923]
[1769988359911,0.46921845,2261.6,2260.9,40.8]
[1769988360111,2.50901703,2262.2,2260.9,40.8]
[1769988360313,0.22128,2261.5,2260.2,2.47588552]
[1769988360514,0.22122,2262.1,2260.2,2.47588552]
[1769988360712,0.22125,2261.8,2260.4,2.47588552]
[1769988361108,2.97823548,2262.1,2260.4,2.47588552]
[1769988361109,0.46921845,2261.5,2260.4,2.47588552]
[1769988361414,0.00357923,2261.5,2260.4,2.48015752]
[1769988361715,0.22119,2262.4,2260.4,2.48015752]
[1769988362019,0.22125,2261.8,2260.4,2.48015752]
[1769988362219,2.50901703,2261.9,2260.4,2.48015752]
[1769988362717,0.22128,2261.5,2260.4,2.48015752]
[1769988362907,2.50901703,2261.4,2260.4,0.004272]
[1769988363106,0.22142,2260.1,2258.9,2.47588552]
[1769988363312,0.22143,2260.0,2258.9,2.47588552]
[1769988363516,2.50901703,2261.0,2259.1,2.47588552]
[1769988363717,0.22142,2260.0,2259.1,2.47588552]
[1769988363918,2.44681639,2261.4,2259.0,40.8]
[1769988363919,2.50901703,2260.4,2259.0,40.8]
[1769988364107,0.00427199,2260.4,2259.1,2.47588552]
[1769988364312,0.22147,2259.5,2259.0,0.00556694]
[1769988364514,2.50901703,2260.1,2259.0,0.00556694]
[1769988364911,0.2215,2259.2,2259.0,6.94e-06]
[1769988365107,2.50901703,2259.8,2258.2,2.47588552]
[1769988365307,5.25475272,2259.7,2258.2,40.8]
[1769988365508,0.22153,2259.0,2258.2,40.8]
[1769988365910,0.22158,2258.4,2257.5,6.45988552]
[1769988366111,0.46921845,2258.3,2257.5,0.00387006]
[1769988366311,2.50901703,2258.1,2257.1,40.8]
[1769988366511,0.00424085,2258.4,2257.2,2.47588552]
[1769988366716,2.50901703,2259.5,2257.2,2.47588552]
[1769988366917,0.22155,2258.8,2257.2,2.47588552]
[1769988367415,2.50901703,2259.3,2257.4,2.47588552]
[1769988367819,0.00560162,2259.3,2257.4,2.4807949]
[1769988368014,0.22153,2259.0,2257.5,2.32565522]
[1769988368214,0.22157,2258.6,2257.5,2.32565522]
[1769988368415,0.22709162,2259.3,2257.5,2.32565522]
[1769988369020,0.00560162,2259.3,2257.5,2.32565522]
[1769988369318,0.69072845,2259.1,2257.5,2.32565522]
[1769988369519,0.22157,2258.5,2257.4,0.00490938]
[1769988369715,0.46921845,2258.5,2257.4,0.00490938]
[1769988369912,2.65800144,2259.3,2257.4,2.3305646]
[1769988370116,0.00560162,2259.3,2257.8,2.32565522]
[1769988370311,0.00560162,2259.3,2258.0,2.32565522]
[1769988370616,2.44681639,2260.3,2258.4,2.32565522]
[1769988370809,10.38014405,2260.2,2258.4,2.32565522]
[1769988371013,0.46921845,2259.9,2258.4,2.32565522]
[1769988371516,0.69067845,2259.6,2258.4,2.32565522]
[1769988371818,0.00386653,2259.9,2258.4,2.32565522]
[1769988372015,2.44681639,2260.6,2258.7,2.32565522]
[1769988372212,2.43089982,2261.0,2259.1,2.32565522]
[1769988372213,4.87771621,2261.0,2259.1,2.32565522]
[1769988372515,4.87771621,2261.0,2258.8,10.578]
[1769988372516,4.87771621,2261.9,2260.4,2.32565522]
[1769988372717,2.44681639,2262.5,2260.6,2.32565522]
[1769988373015,2.90011827,2262.7,2260.6,2.32904962]
[1769988373319,0.46921845,2262.4,2260.9,2.32565522]
[1769988373515,2.43089982,2263.3,2261.1,2.32565522]
[1769988373714,2.43089982,2263.3,2261.0,5.42925219]
[1769988373715,2.43089982,2263.3,2261.6,2.32565522]
[1769988373911,2.43089982,2263.0,2261.7,3.984]
[1769988374121,0.46921845,2262.3,2261.3,6.30965522]
[1769988374419,0.46921845,2262.4,2261.3,3.984]
[1769988374611,0.22124,2261.9,2260.6,0.0033944]
[1769988374913,0.46921845,2261.7,2260.6,0.0033944]
[1769988375112,0.46921845,2261.3,2260.6,0.0033944]
[1769988375318,0.46921845,2261.4,2260.6,0.0033944]
[1769988375520,2.43089982,2262.4,2260.6,2.02023852]
[1769988375720,2.43089982,2262.2,2260.6,2.02023852]
[1769988376416,0.22124,2261.9,2260.6,2.02023852]
[1769988376813,2.65213982,2261.9,2260.6,0.0033944]
[1769988377013,2.43089982,2261.4,2260.6,0.0033944]
[1769988377223,2.44681639,2262.0,2260.6,2.05031808]
[1769988377418,2.65217982,2261.5,2260.6,0.0033944]
[1769988377818,2.43089982,2261.5,2260.6,0.0033944]
[1769988378316,2.43089982,2261.3,2260.6,0.0033944]
[1769988378620,0.2214,2260.3,2259.4,34.20065522]
[1769988378819,2.43089982,2261.4,2259.5,2.32565522]
[1769988379018,0.22134,2260.9,2259.6,40.8]
[1769988379220,0.22135,2260.8,2259.6,40.8]
[1769988379522,2.43089982,2261.8,2259.7,2.54710522]
[1769988379922,2.65212982,2262.0,2260.3,2.32565522]
[1769988380117,2.43089982,2262.0,2260.4,2.32565522]
[1769988380326,2.44681639,2262.6,2260.7,2.32565522]
[1769988380619,2.43089982,2263.3,2261.2,2.54695522]
[1769988380823,2.43089982,2263.2,2261.2,2.55189269]
[1769988381025,2.43089982,2263.6,2261.6,2.32565522]
[1769988381220,2.43089982,2263.6,2261.8,2.32565522]
[1769988381415,0.2211,2263.3,2261.8,2.32565522]
[1769988381615,2.44117899,2263.5,2261.8,2.32565522]
[1769988381922,0.01027917,2263.5,2261.8,2.32565522]
[1769988382122,0.01027917,2263.5,2261.9,2.32565522]
[1769988382624,0.01027917,2263.5,2261.8,5.42925219]
[1769988382625,2.65187982,2264.5,2262.4,2.54684522]
[1769988382917,2.65190982,2264.3,2262.4,2.32565522]
[1769988383118,7.54967214,2264.2,2262.4,2.32565522]
[1769988383323,2.43089982,2264.2,2262.4,2.32565522]
[1769988383517,2.43089982,2264.7,2262.4,2.32565522]
[1769988383714,2.43089982,2264.7,2262.5,2.32565522]
[1769988383715,0.22099,2264.5,2262.5,2.32565522]
[1769988383916,2.44681639,2265.1,2262.4,5.42925219]
[1769988383917,2.44681639,2265.1,2263.1,2.32565522]
[1769988384120,2.43089982,2265.2,2263.3,2.32565522]
[1769988384327,0.01158997,2265.4,2263.6,2.32565522]
[1769988384520,0.2209,2265.3,2264.1,43.12565522]
[1769988384820,2.43089982,2265.3,2264.1,40.8]
[1769988385022,2.43089982,2264.4,2263.5,3.981]
[1769988385322,2.43089982,2264.8,2263.5,6.30665522]
[1769988385517,2.43089982,2265.1,2263.6,43.12565522]
[1769988385821,2.65185982,2264.8,2263.6,40.8]
[1769988386024,1.43089982,2264.5,2263.5,3.981]
[1769988386226,2.44681639,2265.3,2263.5,3.981]
[1769988386522,0.22098,2264.6,2263.6,40.8]
[1769988386718,0.22098,2264.6,2263.6,43.12565522]
[1769988387424,0.22099,2264.4,2263.5,3.981]
[1769988387820,0.22099,2264.4,2263.5,44.781]
[1769988388019,2.43089982,2265.3,2263.5,44.781]
[1769988388219,0.22101,2264.2,2263.5,44.781]
[1769988388529,2.43089982,2264.4,2263.5,1.20288984]
[1769988388730,1.51015461,2264.3,2262.3,2.32565522]
[1769988388922,0.22122,2262.1,2261.9,2.32565522]
[1769988389223,1.4216381,2263.9,2261.9,2.32565522]
[1769988389430,1.4216381,2262.8,2260.9,2.32565522]
[1769988389628,1.8763881,2262.4,2260.5,3.98]
[1769988389920,1.87949118,2262.4,2260.5,3.98549017]
[1769988390127,0.22126,2261.7,2260.6,0.00341748]
[1769988390328,0.2212,2262.3,2260.5,3.98549017]
[1769988390623,0.22127,2261.6,2260.6,0.00341748]
[1769988390825,0.22128,2261.5,2260.5,3.98549017]
[1769988391130,0.2213,2261.3,2260.7,0.00341748]
[1769988391326,1.9263625,2262.3,2260.5,3.98549017]
[1769988391628,0.22135,2260.8,2260.1,2.32565522]
[1769988391824,1.9263625,2261.9,2259.9,3.98]
[1769988392124,7.46359022,2261.8,2260.0,40.8]
[1769988392322,0.22138,2260.5,2259.9,3.98]
[1769988392524,2.3962325,2261.7,2259.4,5.42925219]
[1769988392828,2.39986943,2261.7,2260.0,40.8]
[1769988393127,0.22137,2260.6,2259.4,0.00382098]
[1769988393325,2.41667982,2261.3,2259.4,0.00382098]
[1769988393522,0.22142,2260.1,2259.5,40.8]
[1769988393726,0.22143,2260.0,2259.4,0.00382098]
[1769988394124,0.00486112,2260.1,2259.4,0.00723846]
[1769988394329,2.42154094,2260.1,2258.9,0.22196456]
[1769988394529,0.22149,2259.3,2258.2,6.30665522]
[1769988394726,0.2215,2259.2,2258.2,6.30665522]
[1769988394922,0.22145,2259.7,2258.2,2.32565522]
[1769988395129,0.22146,2259.6,2258.2,2.32565522]
[1769988395323,2.19471526,2259.8,2258.2,2.33084727]
[1769988395628,0.2215,2259.2,2258.2,2.33084727]
[1769988395825,0.22152,2259.0,2258.2,2.33084727]
[1769988396030,0.22144,2259.8,2258.4,2.32565522]
[1769988396226,0.22148,2259.5,2258.4,2.32565522]
[1769988396430,0.22149,2259.4,2258.4,2.32565522]
[1769988396935,0.22627112,2260.1,2258.4,2.32565522]
[1769988397134,0.00486112,2260.1,2258.4,2.32565522]
[1769988397335,0.22145,2259.7,2258.4,2.32565522]
[1769988397930,0.00486112,2260.1,2258.4,2.32565522]
[1769988398236,0.22145,2259.7,2258.4,2.32565522]
[1769988399131,0.22147,2259.5,2258.4,2.32565522]
[1769988399635,2.19211761,2259.9,2258.4,2.32565522]
[1769988399835,0.22148,2259.4,2258.4,2.32565522]
[1769988400030,0.22154,2258.9,2258.2,0.00519205]
[1769988400336,3.983,2259.8,2256.4,5.63514869]
[1769988400337,0.22156,2258.6,2257.5,2.47761723]
[1769988400738,0.65,2258.5,2254.7,2.47761723]
[1769988401033,0.22187,2255.5,2254.0,2.55414977]
[1769988401235,0.22188,2255.3,2254.0,0.00510688]
[1769988401538,0.06219089,2255.1,2253.5,2.52305433]
[1769988401729,0.22191,2255.0,2253.5,2.52305433]
[1769988401936,0.22192,2254.9,2253.5,2.52305433]
[1769988402128,0.22194,2254.8,2253.5,2.52305433]
[1769988402331,0.00470582,2255.5,2253.5,2.52305433]
[1769988402535,0.22187,2255.4,2253.5,2.52857757]
[1769988402934,0.06178983,2255.5,2253.5,2.52857757]
[1769988403142,0.2219,2255.2,2253.5,2.52857757]
[1769988403438,0.22194,2254.8,2253.5,2.52857757]
[1769988403839,0.00470582,2255.5,2253.5,2.52857757]
[1769988405136,0.22657582,2255.5,2253.5,2.52857757]
[1769988406836,0.00470582,2255.5,2253.5,2.52857757]
[1769988407535,0.00470582,2255.5,2253.7,2.49397274]
[1769988407940,0.22191,2255.0,2253.7,2.49397274]
[1769988408535,0.00470582,2255.5,2253.7,2.49397274]
[1769988409648,0.22191,2255.1,2253.7,2.49397274]
[1769988411047,0.00470582,2255.5,2253.7,2.49397274]
[1769988413047,0.00470582,2255.5,2253.8,40.8]
[1769988413248,0.00470582,2255.5,2253.9,2.50638784]
[1769988413553,0.2219,2255.1,2253.9,2.50638784]
[1769988413749,0.00470582,2255.5,2253.9,2.50638784]
[1769988414150,0.10219441,2257.1,2253.9,2.50638784]
[1769988414347,0.22177,2256.5,2254.6,5.41337869]
[1769988414547,0.10219441,2258.0,2254.8,2.50403493]
[1769988414751,2.44783876,2259.7,2254.7,43.877]
[1769988414752,0.22166,2257.6,2255.1,2.49397274]
[1769988415045,0.22171,2257.1,2255.1,2.49397274]
[1769988415251,0.22582952,2257.1,2255.1,2.49834203]
[1769988415446,0.22165,2257.7,2255.1,2.49834203]
[1769988415651,0.22169,2257.3,2255.1,2.49834203]
[1769988415850,0.22171,2257.1,2255.1,2.49834203]
[1769988416449,0.22596493,2257.1,2255.1,2.49834203]
[1769988416650,0.22175,2256.7,2255.1,2.49834203]
[1769988417646,0.00425493,2257.1,2255.1,2.49834203]
[1769988417849,0.22173,2256.9,2255.1,2.49834203]
[1769988418354,0.22174,2256.8,2255.1,2.49834203]
[1769988418754,0.22174,2256.8,2255.7,2.49397274]
[1769988418951,0.22174,2256.8,2255.8,2.49397274]
[1769988420052,0.22177,2256.5,2255.8,2.49397274]
[1769988420451,0.22596493,2257.1,2255.8,2.49397274]
[1769988420651,0.20536485,2258.3,2256.0,2.49397274]
[1769988420851,0.22167,2257.5,2256.0,2.49397274]
[1769988421058,0.22167,2257.5,2256.1,11.924]
[1769988421251,0.20501973,2258.7,2256.2,2.49397274]
[1769988421448,0.20501973,2258.5,2256.2,2.49397274]
[1769988421652,0.22163,2258.0,2256.2,2.49397274]
[1769988421858,0.22486399,2258.0,2256.2,2.49397274]
[1769988422358,0.22156,2258.6,2256.4,2.49397274]
[1769988422557,0.22156,2258.6,2256.6,2.49397274]
[1769988422751,0.22156,2258.6,2256.8,2.49397274]
[1769988422951,0.20825372,2259.9,2256.8,2.49397274]
[1769988423150,0.22154,2258.8,2256.8,2.49397274]
[1769988423357,0.22700529,2258.8,2256.8,2.49950654]
[1769988423752,0.22700529,2258.8,2256.9,2.49397274]
[1769988424159,0.00546529,2258.8,2256.9,2.49397274]
[1769988424554,0.2215,2259.2,2257.1,2.49397274]
[1769988424755,0.22031869,2260.6,2257.4,2.49397274]
[1769988425060,0.22147,2259.5,2257.6,2.49397274]
[1769988425359,0.22152,2259.0,2257.8,2.49397274]
[1769988425559,0.222768,2259.0,2258.0,2.49397274]
[1769988425757,0.001248,2259.0,2258.1,2.49397274]
[1769988425955,0.30392855,2260.3,2258.1,2.49397274]
[1769988426157,0.22143,2260.0,2258.1,2.49397274]
[1769988426360,0.22143,2260.0,2258.0,3.989]
[1769988426361,0.22143,2260.0,2258.7,2.49397274]
[1769988426754,0.30517655,2261.0,2258.7,2.49397274]
[1769988426962,0.22135,2260.7,2258.7,2.49864417]
[1769988427163,0.22137,2260.6,2258.7,2.49864417]
[1769988427362,0.29382224,2261.2,2258.7,2.49864417]
[1769988427559,0.29382224,2260.8,2258.7,2.49864417]
[1769988427759,0.28953526,2260.7,2258.7,2.49864417]
[1769988428261,0.22143,2259.9,2258.7,2.49864417]
[1769988428757,0.28953526,2260.8,2258.7,2.49864417]
[1769988428960,0.22145,2259.8,2258.7,2.49864417]
[1769988429162,0.29008531,2260.5,2258.7,2.49864417]
[1769988429463,0.22149,2259.4,2258.7,2.49864417]
[1769988429756,8.88367752,2261.1,2258.7,2.49864417]
[1769988429757,0.22143,2260.0,2258.7,2.49864417]
[1769988430263,0.22143,2259.9,2258.7,2.49864417]
[1769988430662,0.22139,2260.4,2258.8,11.883]
[1769988430960,0.22144,2259.8,2259.0,2.45729117]
[1769988431156,0.22147,2259.6,2259.0,2.45729117]
[1769988431356,0.29025426,2260.4,2259.0,2.45729117]
[1769988431559,0.22144,2259.8,2259.0,2.45729117]
[1769988432363,0.22145,2259.7,2259.0,2.45729117]
[1769988433560,0.37165457,2260.4,2259.0,2.45729117]
[1769988433761,0.11108807,2259.2,2258.8,2.45729117]
[1769988433963,0.22154,2258.8,2258.7,1.43e-06]
[1769988434166,0.22158,2258.5,2258.0,2.45729117]
[1769988434462,0.2216,2258.2,2257.6,2.45729117]
[1769988435066,0.22163,2257.9,2257.6,2.47939265]
[1769988435469,0.00427082,2258.2,2257.6,2.47939265]
[1769988435960,0.15945262,2259.9,2257.6,2.47939265]
[1769988436160,0.22161,2258.2,2257.6,2.47939265]
[1769988436663,0.15945262,2259.6,2257.6,2.47939265]
[1769988437060,0.51093985,2259.6,2257.6,2.47939265]
[1769988437263,0.22157,2258.5,2257.6,2.47939265]
[1769988437659,0.95410985,2260.0,2257.6,2.47939265]
[1769988437857,0.22149,2259.4,2257.6,2.47939265]
[1769988438164,0.95410985,2260.1,2257.6,2.47939265]
[1769988438364,0.22157,2258.5,2257.6,2.47939265]
[1769988438567,0.22158,2258.4,2257.6,2.47939265]
[1769988439366,0.22152,2259.0,2257.6,2.47939265]
[1769988439763,1.12481589,2260.3,2257.6,2.70105265]
[1769988440059,0.22151,2259.1,2257.8,2.45729117]
[1769988440261,0.22145,2259.7,2257.8,2.45729117]
[1769988440464,0.22148,2259.5,2257.8,2.45729117]
[1769988440660,0.22148,2259.4,2257.8,2.45729117]
[1769988441267,1.12481589,2260.5,2257.8,2.67893117]
[1769988441466,0.22144,2259.9,2257.8,2.67893117]
[1769988441667,0.22144,2259.9,2258.0,2.45729117]
[1769988441868,0.22144,2259.9,2258.2,2.45729117]
[1769988442067,0.22144,2259.9,2258.4,2.45729117]
[1769988442469,0.22144,2259.8,2258.4,2.45729117]
[1769988443271,0.22147,2259.5,2258.4,2.45729117]
[1769988443465,1.12220283,2260.3,2258.4,2.45729117]
[1769988443664,0.22149,2259.4,2258.6,2.45729117]
[1769988443862,0.22142,2260.0,2258.6,2.45729117]